{"text_format":"3","workbook":"xlsx","n_sheets":1,"sheets":["Månedligt familiebudget"],"read":"whole","date_system":"1900"}

{"sheet":"Månedligt familiebudget","index":0,"n_rows":67,"n_cols":10,"rows_kept":67}
[null,"Månedligt familiebudget"]
[null,"Oversigtstabel","I alt\nForventede omkostninger","I alt\nFaktiske omkostninger","I alt\nForskel",null,"Planlagt månedlig indtægtskilde","Mængde"]
[null,null,{"$f":"Bolig[[#Totals],[Forventet\nOmkostninger]]+Transport[[#Totals],[Forventet\nOmkostninger]]+Forsikring[[#Totals],[Forventet\nOmkostninger]]+Mad[[#Totals],[Forventet\nOmkostninger]]+Børn[[#Totals],[Forventet\nOmkostninger]]+Juridisk[[#Totals],[Forventet\nOmkostninger]]+Opsparing[[#Totals],[Forventet\nOmkostninger]]+Lån[[#Totals],[Forventet\nOmkostninger]]+Underholdning[[#Totals],[Forventet\nOmkostninger]]+Skat[[#Totals],[Forventet \nOmkostninger]]+PersonligPleje[[#Totals],[Forventet\nOmkostninger]]+Kæledyr[[#Totals],[Forventet\nOmkostninger]]+Gaver[[#Totals],[Forventet\nOmkostninger]]","v":{"v":1203,"d":"kr. 1,203"}},{"$f":"Bolig[[#Totals],[Faktisk\nOmkostninger]]+Transport[[#Totals],[Faktisk\nOmkostninger]]+Forsikring[[#Totals],[Faktisk\nOmkostninger]]+Mad[[#Totals],[Faktisk\nOmkostninger]]+Børn[[#Totals],[Faktisk\nOmkostninger]]+Juridisk[[#Totals],[Faktisk\nOmkostninger]]+Opsparing[[#Totals],[Faktisk\nOmkostninger]]+Lån[[#Totals],[Faktisk\nOmkostninger]]+Underholdning[[#Totals],[Faktisk\nOmkostninger]]+Skat[[#Totals],[Faktisk \nOmkostninger]]+PersonligPleje[[#Totals],[Faktisk\nOmkostninger]]+Kæledyr[[#Totals],[Faktisk\nOmkostninger]]+Gaver[[#Totals],[Faktisk\nOmkostninger]]","v":{"v":1317,"d":"kr. 1,317"}},{"$f":"Bolig[[#Totals],[Forskel]]+Transport[[#Totals],[Forskel]]+Forsikring[[#Totals],[Forskel]]+Mad[[#Totals],[Forskel]]+Børn[[#Totals],[Forskel]]+Juridisk[[#Totals],[Forskel]]+Opsparing[[#Totals],[Forskel]]+Lån[[#Totals],[Forskel]]+Underholdning[[#Totals],[Forskel]]+Skat[[#Totals],[Forskel]]+PersonligPleje[[#Totals],[Forskel]]+Kæledyr[[#Totals],[Forskel]]+Gaver[[#Totals],[Forskel]]","v":{"v":-114,"d":"kr. -114"}},null,"Indtægt 1",{"v":4000,"d":"kr. 4,000"}]
[{"$nulls":6},"Indtægt 2",{"v":1200,"d":"kr. 1,200"}]
[null,"Bolig","Forventet\nOmkostninger","Faktisk\nOmkostninger","Forskel",null,"Yderligere indtægter",{"v":300,"d":"kr. 300"}]
[null,"Realkreditlån eller husleje",{"v":1000,"d":"kr. 1,000"},{"v":1000,"d":"kr. 1,000"},{"$f":"Bolig[Forventet\nOmkostninger]-Bolig[Faktisk\nOmkostninger]","v":{"v":0,"d":"kr. 0"}},null,"Samlet månedlig indtægt",{"$f":"SUM(H3:H5)","v":{"v":5500,"d":"kr. 5,500"}}]
[null,"Sekundært realkreditlån eller husleje",{"v":0,"d":"kr. 0"},{"v":0,"d":"kr. 0"},{"$f":"Bolig[Forventet\nOmkostninger]-Bolig[Faktisk\nOmkostninger]","v":{"v":0,"d":"kr. 0"}}]
[null,"Telefon",{"v":62,"d":"kr. 62"},{"v":100,"d":"kr. 100"},{"$f":"Bolig[Forventet\nOmkostninger]-Bolig[Faktisk\nOmkostninger]","v":{"v":-38,"d":"kr. -38"}},null,"Faktisk månedlig indtægtskilde","Beløb"]
[null,"El",{"v":44,"d":"kr. 44"},{"v":125,"d":"kr. 125"},{"$f":"Bolig[Forventet\nOmkostninger]-Bolig[Faktisk\nOmkostninger]","v":{"v":-81,"d":"kr. -81"}},null,"Indtægt 1",{"v":4000,"d":"kr. 4,000"}]
[null,"Benzin",{"v":22,"d":"kr. 22"},{"v":35,"d":"kr. 35"},{"$f":"Bolig[Forventet\nOmkostninger]-Bolig[Faktisk\nOmkostninger]","v":{"v":-13,"d":"kr. -13"}},null,"Indtægt 2",{"v":1200,"d":"kr. 1,200"}]
[null,"Vand og kloak",{"v":8,"d":"kr. 8"},{"v":8,"d":"kr. 8"},{"$f":"Bolig[Forventet\nOmkostninger]-Bolig[Faktisk\nOmkostninger]","v":{"v":0,"d":"kr. 0"}},null,"Yderligere indtægter",{"v":300,"d":"kr. 300"}]
[null,"Tv-pakke",{"v":34,"d":"kr. 34"},{"v":39,"d":"kr. 39"},{"$f":"Bolig[Forventet\nOmkostninger]-Bolig[Faktisk\nOmkostninger]","v":{"v":-5,"d":"kr. -5"}},null,"Samlet månedlig indtægt",{"$f":"SUM(H9:H11)","v":{"v":5500,"d":"kr. 5,500"}}]
[null,"Bortskaffelse af affald",{"v":10,"d":"kr. 10"},{"v":10,"d":"kr. 10"},{"$f":"Bolig[Forventet\nOmkostninger]-Bolig[Faktisk\nOmkostninger]","v":{"v":0,"d":"kr. 0"}}]
[null,"Vedligeholdelse eller reparation",{"v":23,"d":"kr. 23"},{"v":0,"d":"kr. 0"},{"$f":"Bolig[Forventet\nOmkostninger]-Bolig[Faktisk\nOmkostninger]","v":{"v":23,"d":"kr. 23"}},null,"Saldo","Beløb"]
[null,"Forsyninger",{"v":0,"d":"kr. 0"},{"v":0,"d":"kr. 0"},{"$f":"Bolig[Forventet\nOmkostninger]-Bolig[Faktisk\nOmkostninger]","v":{"v":0,"d":"kr. 0"}},null,"Planlagt saldo",{"$f":"SUM(H6-'Månedligt familiebudget'!$C$3:$C$3)","v":{"v":4297,"d":"kr. 4,297"}}]
[null,"Andet",{"v":0,"d":"kr. 0"},{"v":0,"d":"kr. 0"},{"$f":"Bolig[Forventet\nOmkostninger]-Bolig[Faktisk\nOmkostninger]","v":{"v":0,"d":"kr. 0"}},null,"Faktisk saldo",{"$f":"SUM(H12-D3)","v":{"v":4183,"d":"kr. 4,183"}}]
[null,"Total",{"$f":"SUBTOTAL(109,Bolig[Forventet\nOmkostninger])","v":{"v":1203,"d":"kr. 1,203"}},{"$f":"SUBTOTAL(109,Bolig[Faktisk\nOmkostninger])","v":{"v":1317,"d":"kr. 1,317"}},{"$f":"SUBTOTAL(109,Bolig[Forskel])","v":{"v":-114,"d":"kr. -114"}},null,"Forskel",{"$f":"SUM(H16-H15)","v":{"v":-114,"d":"kr. -114"}}]
[]
[null,"Transport","Forventet\nOmkostninger","Faktisk\nOmkostninger","Forskel",null,"Lån","Forventet\nOmkostninger","Faktisk\nOmkostninger","Forskel"]
[null,"Afbetaling på køretøj 1",null,null,{"$f":"Transport[Forventet\nOmkostninger]-Transport[Faktisk\nOmkostninger]","v":{"v":0,"d":"kr. 0"}},null,"Privat",null,null,{"$f":"Lån[Forventet\nOmkostninger]-Lån[Faktisk\nOmkostninger]","v":{"v":0,"d":"kr. 0"}}]
[null,"Afbetaling på køretøj 2",null,null,{"$f":"Transport[Forventet\nOmkostninger]-Transport[Faktisk\nOmkostninger]","v":{"v":0,"d":"kr. 0"}},null,"Studerende",null,null,{"$f":"Lån[Forventet\nOmkostninger]-Lån[Faktisk\nOmkostninger]","v":{"v":0,"d":"kr. 0"}}]
[null,"Udgifter til bus/taxa",null,null,{"$f":"Transport[Forventet\nOmkostninger]-Transport[Faktisk\nOmkostninger]","v":{"v":0,"d":"kr. 0"}},null,"Kreditkort",null,null,{"$f":"Lån[Forventet\nOmkostninger]-Lån[Faktisk\nOmkostninger]","v":{"v":0,"d":"kr. 0"}}]
[null,"Forsikring",null,null,{"$f":"Transport[Forventet\nOmkostninger]-Transport[Faktisk\nOmkostninger]","v":{"v":0,"d":"kr. 0"}},null,"Kreditkort",null,null,{"$f":"Lån[Forventet\nOmkostninger]-Lån[Faktisk\nOmkostninger]","v":{"v":0,"d":"kr. 0"}}]
[null,"Licens",null,null,{"$f":"Transport[Forventet\nOmkostninger]-Transport[Faktisk\nOmkostninger]","v":{"v":0,"d":"kr. 0"}},null,"Kreditkort",null,null,{"$f":"Lån[Forventet\nOmkostninger]-Lån[Faktisk\nOmkostninger]","v":{"v":0,"d":"kr. 0"}}]
[null,"Brændstof",null,null,{"$f":"Transport[Forventet\nOmkostninger]-Transport[Faktisk\nOmkostninger]","v":{"v":0,"d":"kr. 0"}},null,"Andet",null,null,{"$f":"Lån[Forventet\nOmkostninger]-Lån[Faktisk\nOmkostninger]","v":{"v":0,"d":"kr. 0"}}]
[null,"Vedligeholdelse",null,null,{"$f":"Transport[Forventet\nOmkostninger]-Transport[Faktisk\nOmkostninger]","v":{"v":0,"d":"kr. 0"}},null,"Total",{"$f":"SUBTOTAL(109,Lån[Forventet\nOmkostninger])","v":{"v":0,"d":"kr. 0"}},{"$f":"SUBTOTAL(109,Lån[Faktisk\nOmkostninger])","v":{"v":0,"d":"kr. 0"}},{"$f":"SUBTOTAL(109,Lån[Forskel])","v":{"v":0,"d":"kr. 0"}}]
[null,"Andet",null,null,{"$f":"Transport[Forventet\nOmkostninger]-Transport[Faktisk\nOmkostninger]","v":{"v":0,"d":"kr. 0"}}]
[null,"Total",{"$f":"SUBTOTAL(109,Transport[Forventet\nOmkostninger])","v":{"v":0,"d":"kr. 0"}},{"$f":"SUBTOTAL(109,Transport[Faktisk\nOmkostninger])","v":{"v":0,"d":"kr. 0"}},{"$f":"SUBTOTAL(109,Transport[Forskel])","v":{"v":0,"d":"kr. 0"}},null,"Underholdning","Forventet\nOmkostninger","Faktisk\nOmkostninger","Forskel"]
[{"$nulls":6},"Video/Dvd",null,null,{"$f":"Underholdning[Forventet\nOmkostninger]-Underholdning[Faktisk\nOmkostninger]","v":{"v":0,"d":"kr. 0"}}]
[null,"Forsikring","Forventet\nOmkostninger","Faktisk\nOmkostninger","Forskel",null,"Cd'er",null,null,{"$f":"Underholdning[Forventet\nOmkostninger]-Underholdning[Faktisk\nOmkostninger]","v":{"v":0,"d":"kr. 0"}}]
[null,"Hus",null,null,{"$f":"Forsikring[Forventet\nOmkostninger]-Forsikring[Faktisk\nOmkostninger]","v":{"v":0,"d":"kr. 0"}},null,"Film",null,null,{"$f":"Underholdning[Forventet\nOmkostninger]-Underholdning[Faktisk\nOmkostninger]","v":{"v":0,"d":"kr. 0"}}]
[null,"Sundhed",null,null,{"$f":"Forsikring[Forventet\nOmkostninger]-Forsikring[Faktisk\nOmkostninger]","v":{"v":0,"d":"kr. 0"}},null,"Koncerter",null,null,{"$f":"Underholdning[Forventet\nOmkostninger]-Underholdning[Faktisk\nOmkostninger]","v":{"v":0,"d":"kr. 0"}}]
[null,"Liv",null,null,{"$f":"Forsikring[Forventet\nOmkostninger]-Forsikring[Faktisk\nOmkostninger]","v":{"v":0,"d":"kr. 0"}},null,"Sportsbegivenheder",null,null,{"$f":"Underholdning[Forventet\nOmkostninger]-Underholdning[Faktisk\nOmkostninger]","v":{"v":0,"d":"kr. 0"}}]
[null,"Andet",null,null,{"$f":"Forsikring[Forventet\nOmkostninger]-Forsikring[Faktisk\nOmkostninger]","v":{"v":0,"d":"kr. 0"}},null,"Live teater",null,null,{"$f":"Underholdning[Forventet\nOmkostninger]-Underholdning[Faktisk\nOmkostninger]","v":{"v":0,"d":"kr. 0"}}]
[null,"Total",{"$f":"SUBTOTAL(109,Forsikring[Forventet\nOmkostninger])","v":{"v":0,"d":"kr. 0"}},{"$f":"SUBTOTAL(109,Forsikring[Faktisk\nOmkostninger])","v":{"v":0,"d":"kr. 0"}},{"$f":"SUBTOTAL(109,Forsikring[Forskel])","v":{"v":0,"d":"kr. 0"}},null,"Andet",null,null,{"$f":"Underholdning[Forventet\nOmkostninger]-Underholdning[Faktisk\nOmkostninger]","v":{"v":0,"d":"kr. 0"}}]
[{"$nulls":6},"Total",{"$f":"SUBTOTAL(109,Underholdning[Forventet\nOmkostninger])","v":{"v":0,"d":"kr. 0"}},{"$f":"SUBTOTAL(109,Underholdning[Faktisk\nOmkostninger])","v":{"v":0,"d":"kr. 0"}},{"$f":"SUBTOTAL(109,Underholdning[Forskel])","v":{"v":0,"d":"kr. 0"}}]
[null,"Mad","Forventet\nOmkostninger","Faktisk\nOmkostninger","Forskel"]
[null,"Dagligvarer",null,null,{"$f":"Mad[Forventet\nOmkostninger]-Mad[Faktisk\nOmkostninger]","v":{"v":0,"d":"kr. 0"}},null,"Skat","Forventet \nOmkostninger","Faktisk \nOmkostninger","Forskel"]
[null,"Mad på restaurant",null,null,{"$f":"Mad[Forventet\nOmkostninger]-Mad[Faktisk\nOmkostninger]","v":{"v":0,"d":"kr. 0"}},null,"National",null,null,{"$f":"Skat[Forventet \nOmkostninger]-Skat[Faktisk \nOmkostninger]","v":{"v":0,"d":"kr. 0"}}]
[null,"Andet",null,null,{"$f":"Mad[Forventet\nOmkostninger]-Mad[Faktisk\nOmkostninger]","v":{"v":0,"d":"kr. 0"}},null,"Regional",null,null,{"$f":"Skat[Forventet \nOmkostninger]-Skat[Faktisk \nOmkostninger]","v":{"v":0,"d":"kr. 0"}}]
[null,"Total",{"$f":"SUBTOTAL(109,Mad[Forventet\nOmkostninger])","v":{"v":0,"d":"kr. 0"}},{"$f":"SUBTOTAL(109,Mad[Faktisk\nOmkostninger])","v":{"v":0,"d":"kr. 0"}},{"$f":"SUBTOTAL(109,Mad[Forskel])","v":{"v":0,"d":"kr. 0"}},null,"Lokal",null,null,{"$f":"Skat[Forventet \nOmkostninger]-Skat[Faktisk \nOmkostninger]","v":{"v":0,"d":"kr. 0"}}]
[{"$nulls":6},"Andet",null,null,{"$f":"Skat[Forventet \nOmkostninger]-Skat[Faktisk \nOmkostninger]","v":{"v":0,"d":"kr. 0"}}]
[null,"Børn","Forventet\nOmkostninger","Faktisk\nOmkostninger","Forskel",null,"Total",{"$f":"SUBTOTAL(109,Skat[Forventet \nOmkostninger])","v":{"v":0,"d":"kr. 0"}},{"$f":"SUBTOTAL(109,Skat[Faktisk \nOmkostninger])","v":{"v":0,"d":"kr. 0"}},{"$f":"SUBTOTAL(109,Skat[Forskel])","v":{"v":0,"d":"kr. 0"}}]
[null,"Sundhed",null,null,{"$f":"Børn[Forventet\nOmkostninger]-Børn[Faktisk\nOmkostninger]","v":{"v":0,"d":"kr. 0"}}]
[null,"Beklædning",null,null,{"$f":"Børn[Forventet\nOmkostninger]-Børn[Faktisk\nOmkostninger]","v":{"v":0,"d":"kr. 0"}},null,"Personlig pleje","Forventet\nOmkostninger","Faktisk\nOmkostninger","Forskel"]
[null,"Skolebetaling",null,null,{"$f":"Børn[Forventet\nOmkostninger]-Børn[Faktisk\nOmkostninger]","v":{"v":0,"d":"kr. 0"}},null,"Sundhed",null,null,{"$f":"PersonligPleje[Forventet\nOmkostninger]-PersonligPleje[Faktisk\nOmkostninger]","v":{"v":0,"d":"kr. 0"}}]
[null,"Skoleforsyninger",null,null,{"$f":"Børn[Forventet\nOmkostninger]-Børn[Faktisk\nOmkostninger]","v":{"v":0,"d":"kr. 0"}},null,"Hår/negle",null,null,{"$f":"PersonligPleje[Forventet\nOmkostninger]-PersonligPleje[Faktisk\nOmkostninger]","v":{"v":0,"d":"kr. 0"}}]
[null,"Gebyrer eller afgifter til organisation",null,null,{"$f":"Børn[Forventet\nOmkostninger]-Børn[Faktisk\nOmkostninger]","v":{"v":0,"d":"kr. 0"}},null,"Beklædning",null,null,{"$f":"PersonligPleje[Forventet\nOmkostninger]-PersonligPleje[Faktisk\nOmkostninger]","v":{"v":0,"d":"kr. 0"}}]
[null,"Frokostpenge",null,null,{"$f":"Børn[Forventet\nOmkostninger]-Børn[Faktisk\nOmkostninger]","v":{"v":0,"d":"kr. 0"}},null,"Tøjrens",null,null,{"$f":"PersonligPleje[Forventet\nOmkostninger]-PersonligPleje[Faktisk\nOmkostninger]","v":{"v":0,"d":"kr. 0"}}]
[null,"Børnepasning",null,null,{"$f":"Børn[Forventet\nOmkostninger]-Børn[Faktisk\nOmkostninger]","v":{"v":0,"d":"kr. 0"}},null,"Sundhedsklub",null,null,{"$f":"PersonligPleje[Forventet\nOmkostninger]-PersonligPleje[Faktisk\nOmkostninger]","v":{"v":0,"d":"kr. 0"}}]
[null,"Legetøj/spil",null,null,{"$f":"Børn[Forventet\nOmkostninger]-Børn[Faktisk\nOmkostninger]","v":{"v":0,"d":"kr. 0"}},null,"Gebyrer/Afgifter til organisation",null,null,{"$f":"PersonligPleje[Forventet\nOmkostninger]-PersonligPleje[Faktisk\nOmkostninger]","v":{"v":0,"d":"kr. 0"}}]
[null,"Andet",null,null,{"$f":"Børn[Forventet\nOmkostninger]-Børn[Faktisk\nOmkostninger]","v":{"v":0,"d":"kr. 0"}},null,"Andet",null,null,{"$f":"PersonligPleje[Forventet\nOmkostninger]-PersonligPleje[Faktisk\nOmkostninger]","v":{"v":0,"d":"kr. 0"}}]
[null,"Total",{"$f":"SUBTOTAL(109,Børn[Forventet\nOmkostninger])","v":{"v":0,"d":"kr. 0"}},{"$f":"SUBTOTAL(109,Børn[Faktisk\nOmkostninger])","v":{"v":0,"d":"kr. 0"}},{"$f":"SUBTOTAL(109,Børn[Forskel])","v":{"v":0,"d":"kr. 0"}},null,"Total",{"$f":"SUBTOTAL(109,PersonligPleje[Forventet\nOmkostninger])","v":{"v":0,"d":"kr. 0"}},{"$f":"SUBTOTAL(109,PersonligPleje[Faktisk\nOmkostninger])","v":{"v":0,"d":"kr. 0"}},{"$f":"SUBTOTAL(109,PersonligPleje[Forskel])","v":{"v":0,"d":"kr. 0"}}]
[]
[null,"Juridisk","Forventet\nOmkostninger","Faktisk\nOmkostninger","Forskel",null,"Kæledyr","Forventet\nOmkostninger","Faktisk\nOmkostninger","Forskel"]
[null,"Advokat",null,null,{"$f":"Juridisk[Forventet\nOmkostninger]-Juridisk[Faktisk\nOmkostninger]","v":{"v":0,"d":"kr. 0"}},null,"Mad",null,null,{"$f":"Kæledyr[Forventet\nOmkostninger]-Kæledyr[Faktisk\nOmkostninger]","v":{"v":0,"d":"kr. 0"}}]
[null,"Underholdsbidrag",null,null,{"$f":"Juridisk[Forventet\nOmkostninger]-Juridisk[Faktisk\nOmkostninger]","v":{"v":0,"d":"kr. 0"}},null,"Sundhed",null,null,{"$f":"Kæledyr[Forventet\nOmkostninger]-Kæledyr[Faktisk\nOmkostninger]","v":{"v":0,"d":"kr. 0"}}]
[null,"Betalinger",null,null,{"$f":"Juridisk[Forventet\nOmkostninger]-Juridisk[Faktisk\nOmkostninger]","v":{"v":0,"d":"kr. 0"}},null,"Pleje",null,null,{"$f":"Kæledyr[Forventet\nOmkostninger]-Kæledyr[Faktisk\nOmkostninger]","v":{"v":0,"d":"kr. 0"}}]
[null,"Andet",null,null,{"$f":"Juridisk[Forventet\nOmkostninger]-Juridisk[Faktisk\nOmkostninger]","v":{"v":0,"d":"kr. 0"}},null,"Legetøj",null,null,{"$f":"Kæledyr[Forventet\nOmkostninger]-Kæledyr[Faktisk\nOmkostninger]","v":{"v":0,"d":"kr. 0"}}]
[null,"Total",{"$f":"SUBTOTAL(109,Juridisk[Forventet\nOmkostninger])","v":{"v":0,"d":"kr. 0"}},{"$f":"SUBTOTAL(109,Juridisk[Faktisk\nOmkostninger])","v":{"v":0,"d":"kr. 0"}},{"$f":"SUBTOTAL(109,Juridisk[Forskel])","v":{"v":0,"d":"kr. 0"}},null,"Andet",null,null,{"$f":"Kæledyr[Forventet\nOmkostninger]-Kæledyr[Faktisk\nOmkostninger]","v":{"v":0,"d":"kr. 0"}}]
[{"$nulls":6},"Total",{"$f":"SUBTOTAL(109,Kæledyr[Forventet\nOmkostninger])","v":{"v":0,"d":"kr. 0"}},{"$f":"SUBTOTAL(109,Kæledyr[Faktisk\nOmkostninger])","v":{"v":0,"d":"kr. 0"}},{"$f":"SUBTOTAL(109,Kæledyr[Forskel])","v":{"v":0,"d":"kr. 0"}}]
[null,"Opsparing/Investering","Forventet\nOmkostninger","Faktisk\nOmkostninger","Forskel"]
[null,"Pensionskonto",null,null,{"$f":"Opsparing[Forventet\nOmkostninger]-Opsparing[Faktisk\nOmkostninger]","v":{"v":0,"d":"kr. 0"}},null,"Gaver og bidrag","Forventet\nOmkostninger","Faktisk\nOmkostninger","Forskel"]
[null,"Investeringskonto",null,null,{"$f":"Opsparing[Forventet\nOmkostninger]-Opsparing[Faktisk\nOmkostninger]","v":{"v":0,"d":"kr. 0"}},null,"Velgørenhed 1",null,null,{"$f":"Gaver[Forventet\nOmkostninger]-Gaver[Faktisk\nOmkostninger]","v":{"v":0,"d":"kr. 0"}}]
[null,"Universitet",null,null,{"$f":"Opsparing[Forventet\nOmkostninger]-Opsparing[Faktisk\nOmkostninger]","v":{"v":0,"d":"kr. 0"}},null,"Velgørenhed 2",null,null,{"$f":"Gaver[Forventet\nOmkostninger]-Gaver[Faktisk\nOmkostninger]","v":{"v":0,"d":"kr. 0"}}]
[null,"Andet",null,null,{"$f":"Opsparing[Forventet\nOmkostninger]-Opsparing[Faktisk\nOmkostninger]","v":{"v":0,"d":"kr. 0"}},null,"Velgørenhed 3",null,null,{"$f":"Gaver[Forventet\nOmkostninger]-Gaver[Faktisk\nOmkostninger]","v":{"v":0,"d":"kr. 0"}}]
[null,"Total",{"$f":"SUBTOTAL(109,Opsparing[Forventet\nOmkostninger])","v":{"v":0,"d":"kr. 0"}},{"$f":"SUBTOTAL(109,Opsparing[Faktisk\nOmkostninger])","v":{"v":0,"d":"kr. 0"}},{"$f":"SUBTOTAL(109,Opsparing[Forskel])","v":{"v":0,"d":"kr. 0"}},null,"Total",{"$f":"SUBTOTAL(109,Gaver[Forventet\nOmkostninger])","v":{"v":0,"d":"kr. 0"}},{"$f":"SUBTOTAL(109,Gaver[Faktisk\nOmkostninger])","v":{"v":0,"d":"kr. 0"}},{"$f":"SUBTOTAL(109,Gaver[Forskel])","v":{"v":0,"d":"kr. 0"}}]